bitfinex-derivatives/quotes_SOLF0:USTF0_20251006
["timestamp","ask_amount","ask_price","bid_price","bid_amount"]
[1759784951179,3.8369,234.45,234.39,103.82]
[1759784951375,3.8369,234.45,234.4,7.59]
[1759784951575,3.8369,234.45,234.39,103.82]
[1759784951780,3.8369,234.45,234.4,7.59]
[1759784951978,3.8369,234.45,234.39,103.82]
[1759784952276,11.1469,234.45,234.39,99.551]
[1759784952885,11.1469,234.45,234.38,4.78440635]
[1759784953090,7.31,234.55,234.4,7.59]
[1759784953290,1.95725268,234.51,234.42,7.59]
[1759784954183,9.26725268,234.51,234.42,7.59]
[1759784954590,3.836,234.5,234.42,7.59]
[1759784954890,1.95725268,234.48,234.42,7.59]
[1759784955090,7.31,234.44,234.41,7.59]
[1759784955290,7.31,234.43,234.39,34.39440635]
[1759784955491,7.31,234.44,234.39,34.39440635]
[1759784955693,59.6752,234.49,234.36,7.17768716]
[1759784955694,11.1476,234.41,234.36,12.37440635]
[1759784955886,7.31,234.38,234.36,4.78440635]
[1759784956091,1.95725268,234.39,234.35,4.78440635]
[1759784956291,7.31,234.38,234.36,4.78440635]
[1759784956691,7.31,234.37,234.35,4.78440635]
[1759784956889,9.26725268,234.39,234.35,7.59]
[1759784957188,9.26725268,234.39,234.35,12.37440635]
[1759784957386,13.10515268,234.39,234.35,12.37440635]
[1759784957693,13.10515268,234.39,234.35,4.78440635]
[1759784957694,7.31,234.38,234.35,4.78440635]
[1759784958492,7.97,234.37,234.35,4.78440635]
[1759784959290,7.97,234.37,234.34,4.78440635]
[1759784959592,7.97,234.37,234.34,12.06440635]
[1759784960993,3.8381,234.38,234.35,7.28]
[1759784961182,3.8376,234.41,234.35,7.28]
[1759784961383,1.95725268,234.42,234.36,4.78440635]
[1759784961586,1.95725268,234.42,234.38,12.06440635]
[1759784961790,1.95725268,234.42,234.38,4.78440635]
[1759784962191,1.95725268,234.42,234.39,7.28]
[1759784962386,1.95725268,234.42,234.38,4.78440635]
[1759784962593,1.95725268,234.42,234.39,7.28]
[1759784962794,1.95725268,234.42,234.38,4.78440635]
[1759784963193,1.95725268,234.42,234.39,7.28]
[1759784963591,1.95725268,234.42,234.38,4.78440635]
[1759784964094,1.95725268,234.42,234.39,7.28]
[1759784965194,9.92725268,234.42,234.39,7.28]
[1759784965594,7.97,234.41,234.38,4.78440635]
[1759784965892,5.79465268,234.42,234.38,4.78440635]
[1759784966486,1.95725268,234.39,234.38,4.78440635]
[1759784966691,1.95725268,234.39,234.38,12.06440635]
[1759784969400,1.95725268,234.42,234.39,7.28]
[1759784969697,1.95725268,234.42,234.41,3.5853517]
[1759784974197,3.8372,234.43,234.41,3.5853517]
[1759784974402,9.92725268,234.45,234.42,10.8653517]
[1759784974701,9.92725268,234.45,234.43,3.5859069]
[1759784975202,13.76425268,234.45,234.43,3.5859069]
[1759784975397,1.95725268,234.44,234.43,3.5859069]
[1759784975596,9.92725268,234.44,234.43,3.5859069]
[1759784982005,7.97,234.44,234.43,3.5859069]
[1759784982405,7.97,234.44,234.41,12.13440635]
[1759784984498,5.79425268,234.45,234.41,12.13440635]
[1759784984499,5.79425268,234.45,234.41,4.78440635]
[1759784984701,5.79425268,234.45,234.44,10.9377578]
[1759784985805,13.56425268,234.45,234.44,3.5877578]
[1759784987008,11.607,234.45,234.44,3.5877578]
[1759784988207,11.607,234.45,234.41,4.78440635]
[1759784988409,11.607,234.45,234.44,3.5881413]
[1759784989208,11.607,234.45,234.42,12.64440635]
[1759784989412,11.607,234.45,234.43,7.86]
[1759784989612,11.607,234.45,234.43,12.64440635]
[1759784990206,11.607,234.45,234.43,7.86]
[1759784990500,11.607,234.45,234.43,12.64440635]
[1759784991209,3.837,234.45,234.43,4.78440635]
[1759784991411,3.837,234.45,234.44,7.86]
[1759784992602,11.747,234.45,234.43,4.78440635]
[1759784993111,11.747,234.45,234.43,12.64440635]
[1759784994217,11.747,234.45,234.43,7.86]
[1759784994713,3.837,234.45,234.43,7.86]
[1759784994909,3.837,234.45,234.44,7.86]
[1759784996717,3.837,234.45,234.42,12.64440635]
[1759784997215,3.837,234.45,234.43,7.86]
[1759784997916,3.8371,234.44,234.42,12.64440635]
[1759785002423,7.91,234.41,234.4,4.78440635]
[1759785002617,7.91,234.41,234.38,4.78440635]
[1759785002924,59.6831,234.46,234.38,4.78440635]
[1759785003115,7.91,234.45,234.41,3.58997724]
[1759785004218,3.8374,234.42,234.41,3.58997724]
[1759785004525,11.7474,234.42,234.41,3.58997724]
[1759785004717,7.91,234.41,234.38,11.45042567]
[1759785005518,11.7476,234.41,234.38,11.45042567]
[1759785005727,11.7476,234.41,234.38,7.86]
[1759785006925,7.91,234.41,234.33,7.86]
[1759785008723,3.8383,234.37,234.31,7.86]
[1759785009122,7.91,234.41,234.31,7.86]
[1759785011029,7.91,234.39,234.31,7.86]
[1759785012619,11.7486,234.35,234.3,103.76]
[1759785012826,11.7486,234.35,234.31,7.86]
[1759785013024,11.7486,234.35,234.3,103.76]
[1759785013224,11.7486,234.35,234.31,7.86]
[1759785013720,11.7486,234.35,234.3,103.76]
[1759785013919,3.8386,234.35,234.3,103.76]
[1759785015323,3.8386,234.35,234.31,7.86]
[1759785015825,3.8386,234.35,234.3,103.76]
[1759785016225,3.8386,234.35,234.31,7.86]
[1759785016525,3.8386,234.35,234.3,103.76]
[1759785016822,3.8386,234.35,234.31,7.86]
[1759785017123,3.8386,234.35,234.3,103.76]
[1759785017326,3.8386,234.35,234.31,7.86]
[1759785017626,11.7481,234.38,234.3,103.76]
[1759785017828,11.7481,234.38,234.31,7.86]
[1759785017829,7.91,234.38,234.31,7.86]
[1759785019724,3.8384,234.36,234.3,103.76]
[1759785020723,3.8384,234.36,234.31,7.34]
[1759785021127,3.8384,234.36,234.3,103.76]
[1759785021324,3.8384,234.36,234.31,7.34]
[1759785021530,3.8384,234.36,234.3,103.76]
[1759785021730,3.8384,234.36,234.31,7.34]
[1759785022026,3.8379,234.39,234.32,7.34]
[1759785023031,11.2875,234.41,234.32,7.34]
[1759785023232,11.2875,234.41,234.35,3.05665364]
[1759785023527,3.8375,234.41,234.37,7.34]
[1759785023931,3.8375,234.41,234.36,103.78]
[1759785024431,3.8375,234.41,234.37,7.34]
[1759785024726,3.8375,234.41,234.37,103.78]
[1759785025025,3.8375,234.41,234.38,7.34]
[1759785025227,3.8375,234.41,234.37,103.78]
[1759785026032,3.8375,234.41,234.38,7.34]
[1759785026332,3.8375,234.41,234.37,103.78]
[1759785026930,3.8375,234.41,234.38,7.34]
[1759785027229,3.8375,234.41,234.37,103.78]
[1759785028432,3.8375,234.41,234.38,7.34]
[1759785028823,3.8375,234.41,234.37,103.78]
[1759785029026,3.8375,234.41,234.38,7.34]
[1759785029227,3.8375,234.41,234.37,103.78]
[1759785029425,3.8375,234.41,234.38,7.34]
[1759785030331,3.8375,234.41,234.37,103.78]
[1759785030633,3.8375,234.41,234.38,7.34]
[1759785030934,3.8375,234.41,234.37,103.78]
[1759785031336,3.8375,234.41,234.38,7.34]
[1759785031533,3.8375,234.41,234.37,103.78]
[1759785031730,3.8375,234.41,234.38,7.34]
[1759785032130,3.8375,234.41,234.37,103.78]
[1759785032636,3.8375,234.41,234.38,7.34]
[1759785033035,3.8375,234.41,234.37,103.78]
[1759785033232,3.8375,234.41,234.38,7.34]
[1759785033432,3.8375,234.41,234.37,103.78]
[1759785033634,3.8375,234.41,234.38,7.34]
[1759785033834,3.8375,234.41,234.37,103.78]
[1759785034938,3.8375,234.41,234.38,7.34]
[1759785035133,3.8375,234.41,234.37,103.78]
[1759785035342,3.8375,234.41,234.38,7.34]
[1759785035839,3.8375,234.41,234.37,103.78]
[1759785036040,3.8375,234.41,234.38,7.34]
[1759785036340,3.8375,234.41,234.38,7.97]
[1759785036540,3.8375,234.41,234.37,103.78]
[1759785037137,3.8375,234.41,234.38,7.97]
[1759785037341,3.8375,234.41,234.37,103.78]
[1759785037538,3.8372,234.43,234.38,7.97]
[1759785037837,3.8372,234.43,234.37,103.78]
[1759785038242,3.8372,234.43,234.38,7.97]
[1759785038849,3.8372,234.43,234.37,103.78]
[1759785039350,3.8372,234.43,234.38,7.97]
[1759785039945,3.8372,234.43,234.37,103.78]
[1759785040445,3.8372,234.43,234.38,7.97]
[1759785041151,3.8372,234.43,234.37,103.78]
[1759785041351,3.8372,234.43,234.38,7.97]
[1759785041753,11.7272,234.43,234.37,103.78]
[1759785041949,11.7272,234.43,234.38,7.97]
[1759785042250,59.6752,234.49,234.35,7.97]
[1759785042251,11.7274,234.42,234.35,7.97]
[1759785042444,11.7274,234.42,234.37,7.97]
[1759785042644,11.7274,234.42,234.36,42.96]
[1759785042849,11.7274,234.42,234.37,7.97]
[1759785043051,11.7274,234.42,234.36,42.96]
[1759785043245,11.7274,234.42,234.38,7.97]
[1759785043451,11.7274,234.42,234.37,63.38]
[1759785043651,11.7274,234.42,234.38,91.12]
[1759785043851,11.7274,234.42,234.39,7.97]
[1759785044052,3.8376,234.41,234.39,7.97]
[1759785044255,11.7276,234.41,234.39,7.97]
[1759785048460,3.8376,234.41,234.39,7.5]
[1759785048959,11.7876,234.41,234.39,7.5]
[1759785051161,7.95,234.4,234.38,91.12]
[1759785051360,7.95,234.4,234.38,98.62]
[1759785052363,7.95,234.4,234.38,7.5]
[1759785052963,11.7877,234.4,234.38,7.5]
[1759785056565,11.7877,234.4,234.36,103.72]
[1759785056761,11.7877,234.4,234.37,7.5]
[1759785057763,11.7877,234.4,234.36,103.72]
[1759785057957,3.8377,234.4,234.37,7.5]
[1759785058156,3.8377,234.4,234.36,103.72]
[1759785060167,3.8377,234.4,234.38,7.5]
[1759785062971,11.7874,234.42,234.39,7.5]
[1759785063372,11.7874,234.42,234.38,30.88]
[1759785063573,11.7874,234.42,234.39,7.5]
[1759785063878,11.7874,234.42,234.38,30.88]
[1759785064573,11.7874,234.42,234.39,11.09207874]
[1759785065474,3.8374,234.42,234.4,11.09207874]
[1759785065670,3.8374,234.42,234.41,7.5]
[1759785065871,3.837,234.44,234.38,35.65395692]
[1759785066172,3.837,234.44,234.43,7.5]
[1759785066376,3.837,234.44,234.43,11.09162121]
[1759785067070,7.95,234.45,234.43,11.09162121]
[1759785067273,7.95,234.5,234.44,3.59162121]
[1759785067477,1.95650121,234.49,234.43,3.59162121]
[1759785067865,3.8369,234.45,234.43,3.59162121]
[1759785068067,7.95,234.45,234.41,3.59162121]
[1759785068577,7.95,234.45,234.4,3.59162121]
[1759785068772,7.95,234.42,234.39,3.59162121]
[1759785069077,7.95,234.4,234.39,3.59162121]
[1759785074576,11.7878,234.39,234.38,3.59162121]
[1759785076084,3.8379,234.38,234.36,4.77395692]
[1759785076282,7.95,234.37,234.36,4.77395692]
[1759785077277,11.7883,234.37,234.35,4.77395692]
[1759785078085,11.7883,234.37,234.35,12.27395692]
[1759785080386,3.8383,234.37,234.36,7.25]
[1759785085694,3.8383,234.37,234.36,12.02395692]
[1759785087194,3.8384,234.35,234.34,4.77395692]
[1759785087495,11.5684,234.35,234.33,4.77395692]
[1759785087694,7.73,234.36,234.32,3.59514174]
[1759785088389,7.73,234.36,234.31,3.59514174]
[1759785088585,3.8388,234.33,234.31,3.59514174]
[1759785088785,7.73,234.32,234.31,3.59514174]
[1759785089896,11.5688,234.33,234.31,3.59514174]
[1759785091290,3.8391,234.31,234.3,10.84514174]
[1759785091487,11.5691,234.31,234.3,3.59514174]
[1759785092495,3.8394,234.29,234.28,3.59514174]
[1759785092995,11.5694,234.29,234.27,107.27514174]
[1759785093197,7.73,234.28,234.27,103.68]
[1759785093596,3.8398,234.27,234.26,3.59514174]
[1759785095197,3.8398,234.27,234.25,3.59514174]
[1759785095999,3.8398,234.27,234.25,10.84514174]
[1759785096197,7.73,234.28,234.21,14.96263326]
[1759785096198,3.8401,234.25,234.24,3.59514174]
[1759785096396,7.7,234.24,234.22,3.59514174]
[1759785096900,7.7,234.24,234.22,7.87]
[1759785097700,11.5404,234.24,234.22,7.87]
[1759785098198,11.5404,234.24,234.21,3.59514174]
[1759785098199,7.7,234.24,234.21,6.877e-05]
[1759785098398,59.7228,234.3,234.12,1.95650121]
[1759785098399,3.8406,234.22,234.12,1.95650121]
[1759785098605,3.8406,234.22,234.12,15.0252826]
[1759785098798,7.7,234.28,234.18,1.95650121]
[1759785099195,7.7,234.33,234.21,1.95650121]
[1759785099397,3.8396,234.29,234.21,32.07650121]
[1759785100301,3.8396,234.29,234.22,7.87]
[1759785104509,11.5391,234.31,234.22,7.87]
[1759785107012,3.8394,234.3,234.22,7.87]
[1759785108414,3.8396,234.29,234.22,7.87]
[1759785119420,11.5391,234.31,234.22,11.7104]
[1759785119622,7.28,234.37,234.22,7.87]
[1759785120824,7.28,234.37,234.24,7.91]
[1759785121522,7.28,234.37,234.23,7.17768716]
[1759785121523,62.75878824,234.4,234.25,22.82]
[1759785121714,7.28,234.35,234.26,7.91]
[1759785122722,3.8388,234.34,234.26,7.91]
[1759785123320,7.28,234.31,234.23,7.91]
[1759785125231,11.1187,234.34,234.21,7.91]
[1759785125424,11.1187,234.34,234.22,7.91]
[1759785125825,7.28,234.33,234.23,7.91]
[1759785126627,7.28,234.33,234.25,7.91]
[1759785127330,7.28,234.33,234.26,7.91]
[1759785128325,7.28,234.33,234.26,12.69012718]
[1759785128823,7.28,234.33,234.26,16.52992718]
[1759785129229,3.06068824,234.37,234.27,4.78012718]
[1759785129434,7.28,234.38,234.31,3.839]
[1759785129632,7.28,234.38,234.32,7.91]
[1759785130624,7.28,234.38,234.32,11.7488]
[1759785130834,7.28,234.44,234.33,7.91]
[1759785131027,7.28,234.44,234.36,7.91]
[1759785132329,7.28,234.44,234.37,7.91]
[1759785132535,7.28,234.44,234.38,4.78012718]
[1759785132735,7.28,234.49,234.39,7.91]
[1759785132931,7.28,234.49,234.39,8.61792718]
[1759785133130,7.28,234.49,234.4,7.91]
[1759785133934,11.1162,234.49,234.4,7.91]
[1759785139145,3.8365,234.47,234.4,7.91]
[1759785141348,7.28,234.49,234.4,7.91]
[1759785142149,3.06068824,234.51,234.4,7.91]
[1759785142150,3.8366,234.47,234.4,7.91]
[1759785142344,7.61,234.46,234.4,7.91]
[1759785142545,3.8368,234.45,234.4,7.91]
[1759785142740,7.61,234.44,234.4,7.91]
[1759785142952,7.61,234.44,234.38,93.12]
[1759785143950,7.61,234.44,234.39,7.54]
[1759785144254,7.61,234.44,234.38,93.12]
[1759785144444,11.4471,234.44,234.38,93.12]
[1759785144643,3.8371,234.44,234.38,93.12]
[1759785145049,7.61,234.43,234.38,93.12]
[1759785145452,3.8371,234.44,234.38,93.12]
[1759785145645,11.4471,234.44,234.38,93.12]
[1759785151861,11.4471,234.44,234.38,100.66]
[1759785152466,7.61,234.44,234.38,100.66]
[1759785154466,11.4465,234.47,234.39,7.54]
[1759785155970,3.8368,234.46,234.39,7.54]
[1759785156268,7.61,234.47,234.39,7.54]
[1759785157666,3.837,234.45,234.39,7.54]
[1759785159571,7.61,234.47,234.39,7.54]
[1759785160275,7.61,234.47,234.39,11.09971204]
[1759785160571,11.4466,234.47,234.4,7.95]
[1759785161375,3.8368,234.46,234.4,7.95]
[1759785161780,7.68,234.46,234.39,3.55971204]
[1759785161966,7.68,234.46,234.38,115.26971204]
[1759785162170,3.8371,234.44,234.38,115.26971204]
[1759785162374,11.5171,234.44,234.39,3.55971204]
[1759785162678,11.5171,234.44,234.4,7.95]
[1759785163177,11.5171,234.44,234.39,7.95]
[1759785163378,11.5171,234.44,234.39,3.55971204]
[1759785163674,11.5171,234.44,234.4,7.95]
[1759785164765,11.5171,234.44,234.39,3.55971204]
[1759785164970,11.5171,234.44,234.4,7.95]
[1759785166176,7.68,234.42,234.38,115.26971204]
[1759785166377,7.68,234.42,234.39,7.95]
[1759785167180,7.68,234.42,234.39,11.50971204]
[1759785168080,7.98,234.46,234.38,107.31971204]
[1759785168270,3.06068824,234.47,234.38,103.76]
[1759785168676,3.06068824,234.43,234.38,103.76]
[1759785169086,59.6855,234.45,234.38,103.76]
[1759785169087,7.98,234.39,234.38,103.76]
[1759785169575,11.8178,234.39,234.38,103.76]
[1759785170181,11.8178,234.39,234.38,107.31971204]
[1759785170883,11.8178,234.39,234.38,103.76]
[1759785171084,7.98,234.36,234.34,3.55971204]
[1759785171381,9.93724101,234.36,234.34,3.55971204]
[1759785172182,13.77564101,234.36,234.35,3.55971204]
[1759785173289,7.98,234.35,234.32,108.54012718]
[1759785173485,7.98,234.35,234.34,3.5794837]
[1759785174685,11.8184,234.35,234.34,3.5794837]
[1759785174987,13.77564101,234.35,234.32,11.5294837]
[1759785175185,13.77564101,234.35,234.32,7.95]
[1759785175685,3.8387,234.34,234.32,7.95]
[1759785175879,11.8187,234.34,234.32,7.95]
[1759785176075,7.98,234.34,234.31,3.5794837]
[1759785176686,7.98,234.34,234.32,3.5794837]
[1759785176980,7.98,234.34,234.31,3.5794837]
[1759785177185,7.98,234.32,234.31,3.5794837]
[1759785177378,7.98,234.32,234.3,3.5794837]
[1759785177581,7.98,234.32,234.29,11.5294837]
[1759785178585,11.8191,234.32,234.29,11.5294837]
[1759785179988,3.8392,234.31,234.29,11.5294837]
[1759785181390,3.8392,234.31,234.29,7.95]
[1759785182188,3.8394,234.29,234.28,107.3594837]
[1759785182386,3.8394,234.29,234.28,103.78]
[1759785183090,11.8194,234.29,234.28,103.78]
[1759785184191,59.7307,234.27,234.23,3.5766187]
[1759785184495,59.7225,234.31,234.19,26.9]
[1759785184496,1.95724101,234.25,234.19,26.9]
[1759785184790,3.8402,234.25,234.2,7.95]
[1759785184988,7.98,234.26,234.2,7.95]
[1759785186792,3.8405,234.23,234.2,7.95]
[1759785188794,3.8405,234.23,234.19,26.9]
[1759785188995,3.8405,234.23,234.2,7.95]
[1759785190498,3.8405,234.23,234.19,26.9]
[1759785190896,3.8405,234.23,234.2,7.95]
[1759785191099,3.8405,234.23,234.19,26.9]
[1759785191302,3.8405,234.23,234.2,7.95]
[1759785191797,3.8401,234.25,234.2,7.95]
[1759785192097,3.8401,234.25,234.19,26.9]
[1759785192299,3.8401,234.25,234.19,34.85]
[1759785193403,3.8401,234.25,234.14,16.47270913]
[1759785193404,9.93724101,234.2,234.12,7.95]
[1759785193606,1.95724101,234.17,234.08,3.8429]
[1759785193901,1.95724101,234.17,234.09,7.95]
[1759785194101,3.8417,234.16,234.09,7.95]
[1759785194904,3.8419,234.15,234.09,7.95]
[1759785195406,9.93724101,234.14,234.06,7.95]
[1759785196603,3.8421,234.13,234.06,7.95]
[1759785198099,7.98,234.14,234.06,7.95]
[1759785198407,1.95724101,234.19,234.09,7.8]
[1759785199305,1.95724101,234.19,234.11,1.95724101]
[1759785199605,1.95724101,234.19,234.12,7.8]
[1759785200001,11.1909,234.2,234.12,7.8]
[1759785202203,7.35,234.2,234.12,7.8]
[1759785202799,7.35,234.2,234.13,3.842]
[1759785202999,3.8407,234.22,234.14,7.8]
[1759785203302,9.30724101,234.24,234.14,7.8]
[1759785203303,7.35,234.24,234.15,7.8]
[1759785204007,7.35,234.24,234.17,5.79854101]
[1759785204212,9.30724101,234.29,234.18,7.8]
[1759785204799,59.7154,234.33,234.18,7.8]
[1759785205014,1.95724101,234.23,234.14,7.8]
[1759785205506,7.35,234.22,234.14,7.8]
[1759785205705,7.35,234.22,234.05,4.74986719]
[1759785205910,1.95724101,234.23,234.06,7.8]
[1759785205911,9.30724101,234.15,234.06,7.8]
[1759785208114,3.8419,234.14,234.06,7.8]
[1759785211425,1.95724101,234.12,234.01,16.62798596]
[1759785211714,1.95724101,234.12,233.98,4.74986719]
[1759785211715,1.95724101,234.09,234.02,7.8]
[1759785211911,7.35,234.08,234.02,7.8]
[1759785214714,7.35,234.13,234.04,3.8434]
[1759785214914,7.35,234.13,234.05,7.8]
[1759785216415,7.7,234.19,234.08,7.83]
[1759785217723,7.7,234.19,234.08,11.6728]
[1759785218523,7.7,234.19,234.09,3.8426]
[1759785218825,7.7,234.19,234.1,7.83]
[1759785219123,1.95724101,234.23,234.1,1.95724101]
[1759785219425,9.65724101,234.23,234.11,7.83]
[1759785220221,7.7,234.23,234.1,1.95724101]
[1759785220416,7.7,234.23,234.13,1.95724101]
[1759785220617,7.7,234.23,234.14,7.83]
[1759785221024,7.7,234.23,234.16,3.8414]
[1759785222520,7.7,234.28,234.16,7.83]
[1759785223928,7.7,234.28,234.18,3.8412]
[1759785224128,1.95724101,234.27,234.18,3.8412]
[1759785225326,7.7,234.23,234.16,4.74986719]
[1759785225523,7.7,234.2,234.15,105.22]
[1759785225728,1.95724101,234.21,234.15,105.22]
[1759785226128,7.7,234.17,234.1,8.59236719]
[1759785226327,7.7,234.17,234.1,4.74986719]
[1759785226523,7.7,234.17,234.09,4.74986719]
[1759785227327,7.7,234.17,234.1,4.74986719]
[1759785228129,7.7,234.17,234.08,116.9329]
[1759785228130,1.95724101,234.15,234.09,4.74986719]
[1759785228335,7.87,234.14,234.08,113.09]
[1759785228528,1.95724101,234.17,234.08,117.83986719]
[1759785229729,1.95724101,234.17,234.08,121.68276719]
[1759785231034,7.87,234.18,234.08,121.68276719]
[1759785231734,11.7114,234.18,234.08,121.68276719]
[1759785233434,7.87,234.18,234.09,7.3]
[1759785233736,7.87,234.18,234.11,7.3]
[1759785234638,7.87,234.18,234.11,11.1424]
[1759785235637,7.87,234.22,234.1,4.74986719]
[1759785235838,7.87,234.22,234.13,7.3]
[1759785237437,7.87,234.22,234.13,11.1419]
[1759785240339,7.87,234.22,234.15,12.04986719]
[1759785240541,6.90472244,234.25,234.15,12.04986719]
[1759785240738,3.06462244,234.25,234.17,7.3]
[1759785240939,7.87,234.24,234.17,7.3]
[1759785241840,7.87,234.24,234.18,3.8412]
[1759785242032,7.87,234.24,234.17,7.3]
[1759785243143,7.87,234.24,234.18,3.8411]
[1759785244244,7.87,234.24,234.19,3.58234371]
[1759785244441,3.06462244,234.27,234.19,10.88234371]
[1759785244648,11.71,234.26,234.19,10.88234371]
[1759785244946,7.87,234.26,234.19,10.88234371]
[1759785247949,7.87,234.26,234.19,14.72334371]
[1759785248140,7.87,234.26,234.19,10.88234371]
[1759785248345,7.87,234.26,234.2,3.58234371]
[1759785248546,7.87,234.26,234.19,14.72334371]
[1759785249645,7.87,234.26,234.2,3.58234371]
[1759785251145,7.87,234.26,234.19,14.72334371]
[1759785251446,7.87,234.28,234.19,3.58234371]
[1759785252148,7.87,234.26,234.19,3.58234371]
[1759785253247,11.71,234.26,234.19,3.58234371]
[1759785253846,11.71,234.26,234.18,3.58234371]
[1759785254351,11.71,234.26,234.19,3.58234371]
[1759785255052,3.8402,234.25,234.18,3.58034622]
[1759785255944,7.87,234.24,234.17,3.58034622]
[1759785256948,7.87,234.24,234.18,7.3]
[1759785257250,7.87,234.24,234.18,11.1411]
[1759785258353,7.87,234.24,234.18,14.72144622]
[1759785259650,7.87,234.24,234.18,10.88034622]
[1759785260850,11.7104,234.24,234.18,10.88034622]
[1759785261052,7.87,234.24,234.17,3.58034622]
[1759785262557,3.8406,234.22,234.17,3.58034622]
[1759785263057,7.64,234.21,234.17,3.58034622]
[1759785263450,3.8406,234.22,234.17,3.58034622]
[1759785263845,7.64,234.21,234.17,3.58034622]
[1759785264258,3.8406,234.22,234.17,3.58034622]
[1759785264951,3.8408,234.21,234.17,3.58034622]
[1759785265157,3.8408,234.21,234.16,3.58034622]
[1759785265358,7.64,234.2,234.16,10.91034622]
[1759785266752,3.8408,234.21,234.16,3.58034622]
[1759785266958,7.64,234.23,234.17,7.33]
[1759785267152,7.64,234.23,234.16,3.58034622]
[1759785268455,3.06462244,234.26,234.16,3.58034622]
[1759785268662,7.64,234.25,234.14,3.58034622]
[1759785269661,11.481,234.2,234.14,3.58034622]
[1759785270663,3.06462244,234.22,234.14,3.58034622]
[1759785270664,7.64,234.17,234.14,3.58034622]
[1759785270854,7.64,234.17,234.12,3.58034622]
[1759785271058,7.64,234.13,234.11,3.58034622]
[1759785271253,3.06462244,234.14,234.11,3.58034622]
[1759785271458,7.64,234.13,234.11,3.58034622]
[1759785271859,6.90662244,234.14,234.11,3.58034622]
[1759785272060,7.64,234.13,234.11,3.58034622]
[1759785272255,6.90662244,234.14,234.11,3.58034622]
[1759785272461,7.64,234.13,234.11,3.58034622]
[1759785272662,6.90662244,234.14,234.11,3.58034622]
[1759785273165,6.90662244,234.14,234.1,3.58034622]
[1759785273362,7.64,234.12,234.1,3.58034622]
[1759785273664,3.8422,234.13,234.1,3.58034622]
[1759785273860,7.64,234.12,234.1,3.58034622]
[1759785277258,7.64,234.12,234.09,3.58034622]
[1759785279963,7.73,234.11,234.09,3.58034622]
[1759785280763,7.73,234.11,234.08,11.45034622]
[1759785282459,6.90652244,234.14,234.08,11.45034622]
[1759785284267,6.90652244,234.14,234.08,7.87]
[1759785286672,176.34423299,234.2,234.08,7.87]
[1759785286673,7.73,234.19,234.11,3.8423]
[1759785286972,3.06462244,234.17,234.09,7.87]
[1759785287267,7.73,234.16,234.09,7.87]
[1759785288770,11.5718,234.16,234.09,7.87]
[1759785289972,3.842,234.14,234.09,7.87]
[1759785290872,7.74,234.13,234.09,7.87]
[1759785292571,7.74,234.12,234.08,60.64]
[1759785292765,3.8422,234.13,234.08,60.64]
[1759785293166,9.70228449,234.11,234.08,60.64]
[1759785293367,9.70228449,234.11,234.08,68.06]
[1759785294069,7.74,234.1,234.08,60.64]
[1759785294274,7.74,234.1,234.06,3.58034622]
[1759785294473,1.96228449,234.11,234.06,3.58034622]
[1759785294674,1.96228449,234.08,234.06,11.00034622]